[Event "*** Titled Tuesday Blitz"]
[Site "Chess.com"]
[Date "2021.03.09"]
[Round "4"]
[White "superjem123"]
[Black "Zhigalko_Sergei"]
[Result "0-1"]
[WhiteElo "2744"]
[BlackElo "2939"]
[TimeControl "180+1"]
[EndTime "10:42:56 PST"]
[Termination "Zhigalko_Sergei won on time"]

1. Nf3 {[%clk 0:03:00.9]} 1... d5 {[%clk 0:03:00.1]} 2. g3 {[%clk 0:02:59.6]}
2... c6 {[%clk 0:03:00.3]} 3. Bg2 {[%clk 0:02:58.8]} 3... Bg4 {[%clk 0:03:00.8]}
4. c4 {[%clk 0:02:57.6]} 4... e6 {[%clk 0:03:00.1]} 5. O-O {[%clk 0:02:56.4]}
5... Nf6 {[%clk 0:02:58.8]} 6. d3 {[%clk 0:02:56.4]} 6... Be7 {[%clk 0:02:57.3]}
7. h3 {[%clk 0:02:54.2]} 7... Bh5 {[%clk 0:02:57.4]} 8. Nc3 {[%clk 0:02:54.2]}
8... O-O {[%clk 0:02:57.4]} 9. Re1 {[%clk 0:02:32.6]} 9... Nbd7 {[%clk
0:02:54.7]} 10. cxd5 {[%clk 0:02:32.6]} 10... exd5 {[%clk 0:02:53.4]} 11. e4
{[%clk 0:02:29.4]} 11... dxe4 {[%clk 0:02:48.8]} 12. dxe4 {[%clk 0:02:30.3]}
12... Nc5 {[%clk 0:02:48.5]} 13. g4 {[%clk 0:02:12.7]} 13... Bg6 {[%clk
0:02:43.6]} 14. Ne5 {[%clk 0:01:54.1]} 14... Qxd1 {[%clk 0:01:38.1]} 15. Nxd1
{[%clk 0:01:54.1]} 15... Rad8 {[%clk 0:01:11.3]} 16. Nc3 {[%clk 0:01:46]} 16...
Nd3 {[%clk 0:01:07.2]} 17. Nxd3 {[%clk 0:01:45.7]} 17... Rxd3 {[%clk 0:01:08.1]}
18. Be3 {[%clk 0:01:45.4]} 18... a6 {[%clk 0:00:48.7]} 19. Rad1 {[%clk
0:01:41.2]} 19... Rfd8 {[%clk 0:00:44.9]} 20. Rxd3 {[%clk 0:01:38.7]} 20... Rxd3
{[%clk 0:00:45.8]} 21. f4 {[%clk 0:01:27.4]} 21... h5 {[%clk 0:00:43.2]} 22. e5
{[%clk 0:01:06.5]} 22... Nd7 {[%clk 0:00:35.7]} 23. Be4 {[%clk 0:00:44]} 23...
Rxc3 {[%clk 0:00:29]} 24. bxc3 {[%clk 0:00:34.8]} 24... Bxe4 {[%clk 0:00:29.3]}
25. Rd1 {[%clk 0:00:35.3]} 25... Nc5 {[%clk 0:00:25.7]} 26. Kf2 {[%clk
0:00:33.9]} 26... hxg4 {[%clk 0:00:25.1]} 27. hxg4 {[%clk 0:00:34.1]} 27... Bd5
{[%clk 0:00:25.1]} 28. Bxc5 {[%clk 0:00:22.3]} 28... Bxc5+ {[%clk 0:00:24.6]}
29. Kg3 {[%clk 0:00:23.2]} 29... b5 {[%clk 0:00:23.5]} 30. f5 {[%clk 0:00:20.6]}
30... Kf8 {[%clk 0:00:19.6]} 31. g5 {[%clk 0:00:19.3]} 31... a5 {[%clk
0:00:17.8]} 32. Kf4 {[%clk 0:00:19]} 32... a4 {[%clk 0:00:17.8]} 33. f6 {[%clk
0:00:19.1]} 33... gxf6 {[%clk 0:00:18.3]} 34. gxf6 {[%clk 0:00:20]} 34... Ke8
{[%clk 0:00:18.8]} 35. Rd2 {[%clk 0:00:18.1]} 35... Kd7 {[%clk 0:00:17.6]} 36.
Kf5 {[%clk 0:00:18.3]} 36... Kc7 {[%clk 0:00:16.5]} 37. Rh2 {[%clk 0:00:17.9]}
37... Kb6 {[%clk 0:00:10.8]} 38. Kg5 {[%clk 0:00:13.5]} 38... Be3+ {[%clk
0:00:06.9]} 39. Kf5 {[%clk 0:00:10.6]} 39... Kc5 {[%clk 0:00:06.6]} 40. Re2
{[%clk 0:00:07.6]} 40... Bc1 {[%clk 0:00:06.5]} 41. Rc2 {[%clk 0:00:05.2]} 41...
Ba3 {[%clk 0:00:04.9]} 42. Kg5 {[%clk 0:00:04.4]} 42... Kc4 {[%clk 0:00:04.1]}
43. Kh6 {[%clk 0:00:04.9]} 43... Kd3 {[%clk 0:00:04.1]} 44. Rh2 {[%clk
0:00:04.6]} 44... Ke4 {[%clk 0:00:04.2]} 45. Rh5 {[%clk 0:00:04]} 45... Bb2
{[%clk 0:00:03.5]} 46. Kg7 {[%clk 0:00:03.7]} 46... Bxc3 {[%clk 0:00:03.9]} 47.
e6 {[%clk 0:00:02.4]} 47... Bxe6 {[%clk 0:00:03.8]} 48. Rc5 {[%clk 0:00:03]}
48... b4 {[%clk 0:00:01.9]} 49. Rxc6 {[%clk 0:00:03.9]} 49... a3 {[%clk
0:00:01.5]} 50. Rb6 {[%clk 0:00:03.2]} 50... Bxa2 {[%clk 0:00:01.7]} 51. Kf8
{[%clk 0:00:03]} 51... Kd3 {[%clk 0:00:02.2]} 52. Rb7 {[%clk 0:00:02.6]} 52...
Kc2 {[%clk 0:00:02.5]} 53. Re7 {[%clk 0:00:02.9]} 53... Bc4 {[%clk 0:00:02.6]}
54. Re4 {[%clk 0:00:02.9]} 54... Bd3 {[%clk 0:00:02.5]} 55. Rc4 {[%clk
0:00:03.8]} 55... Bxc4 {[%clk 0:00:02.3]} 0-1

[Event "*** Titled Tuesday Blitz"]
[Site "Chess.com"]
[Date "2021.03.09"]
[Round "4"]
[White "eCztery"]
[Black "jovencata"]
[Result "1-0"]
[WhiteElo "2430"]
[BlackElo "2173"]
[TimeControl "180+1"]
[EndTime "10:42:58 PST"]
[Termination "eCztery won on time"]

1. d4 {[%clk 0:02:59.6]} 1... a6 {[%clk 0:03:00.9]} 2. e4 {[%clk 0:02:58.7]}
2... b5 {[%clk 0:03:01.8]} 3. c4 {[%clk 0:02:58.2]} 3... Bb7 {[%clk 0:03:02.7]}
4. cxb5 {[%clk 0:02:55.3]} 4... axb5 {[%clk 0:03:02.3]} 5. Bxb5 {[%clk
0:02:53.8]} 5... Bxe4 {[%clk 0:03:01.5]} 6. Nf3 {[%clk 0:02:54.1]} 6... Nf6
{[%clk 0:03:01]} 7. O-O {[%clk 0:02:53.7]} 7... e6 {[%clk 0:03:00.9]} 8. Nc3
{[%clk 0:02:53.3]} 8... Bb7 {[%clk 0:03:00.2]} 9. Bg5 {[%clk 0:02:52.6]} 9...
Be7 {[%clk 0:03:00]} 10. d5 {[%clk 0:02:38.5]} 10... O-O {[%clk 0:02:58.6]} 11.
Bxf6 {[%clk 0:02:21.8]} 11... Bxf6 {[%clk 0:02:57.2]} 12. Bc4 {[%clk 0:02:21.7]}
12... Bxc3 {[%clk 0:02:42.8]} 13. bxc3 {[%clk 0:02:21.1]} 13... Bxd5 {[%clk
0:02:33.9]} 14. Bxd5 {[%clk 0:02:22]} 14... exd5 {[%clk 0:02:34.8]} 15. Qxd5
{[%clk 0:02:22.9]} 15... c6 {[%clk 0:02:35.6]} 16. Qh5 {[%clk 0:02:16.2]} 16...
Ra5 {[%clk 0:02:24.6]} 17. Qh3 {[%clk 0:02:12.6]} 17... d5 {[%clk 0:02:19.8]}
18. Rad1 {[%clk 0:02:11.3]} 18... Rxa2 {[%clk 0:02:14]} 19. Rd4 {[%clk
0:02:10.2]} 19... Nd7 {[%clk 0:02:06.8]} 20. c4 {[%clk 0:02:00.4]} 20... Nf6
{[%clk 0:02:05.5]} 21. Ne5 {[%clk 0:01:59.9]} 21... c5 {[%clk 0:01:51.6]} 22.
Rf4 {[%clk 0:01:42.2]} 22... d4 {[%clk 0:01:49.1]} 23. g4 {[%clk 0:01:19.5]}
23... Qc7 {[%clk 0:01:45.8]} 24. Re1 {[%clk 0:01:17.9]} 24... Re8 {[%clk
0:01:37]} 25. g5 {[%clk 0:01:01.6]} 25... Rxe5 {[%clk 0:01:25.4]} 26. Rxe5
{[%clk 0:01:02.5]} 26... Qxe5 {[%clk 0:01:06.4]} 27. gxf6 {[%clk 0:00:54.5]}
27... Ra8 {[%clk 0:00:37.1]} 28. Rf5 {[%clk 0:00:40.9]} 28... Qe4 {[%clk
0:00:29.4]} 29. Qf3 {[%clk 0:00:19]} 29... Qxf3 {[%clk 0:00:26.2]} 30. Rxf3
{[%clk 0:00:19.9]} 30... gxf6 {[%clk 0:00:24.8]} 31. Rf5 {[%clk 0:00:19]} 31...
Rc8 {[%clk 0:00:14.7]} 32. Kf1 {[%clk 0:00:18.6]} 32... Kg7 {[%clk 0:00:14.5]}
33. Ke2 {[%clk 0:00:19.2]} 33... Kg6 {[%clk 0:00:14.7]} 34. Rd5 {[%clk
0:00:19.3]} 34... f5 {[%clk 0:00:15.6]} 35. f4 {[%clk 0:00:18.7]} 35... Kf6
{[%clk 0:00:15.4]} 36. Kd3 {[%clk 0:00:19.1]} 36... Ke7 {[%clk 0:00:14.5]} 37.
Rxf5 {[%clk 0:00:19.1]} 37... f6 {[%clk 0:00:14.5]} 38. Rh5 {[%clk 0:00:18.9]}
38... Ke6 {[%clk 0:00:10.7]} 39. Rxh7 {[%clk 0:00:17.9]} 39... Ra8 {[%clk
0:00:09.6]} 40. f5+ {[%clk 0:00:15.9]} 40... Ke5 {[%clk 0:00:08.6]} 41. Rc7
{[%clk 0:00:14.9]} 41... Ra3+ {[%clk 0:00:08.2]} 42. Ke2 {[%clk 0:00:14.4]}
42... Ke4 {[%clk 0:00:08.5]} 43. Rxc5 {[%clk 0:00:13.5]} 43... Ra2+ {[%clk
0:00:08.9]} 44. Kf1 {[%clk 0:00:12.7]} 44... Kf3 {[%clk 0:00:08.8]} 45. Ke1
{[%clk 0:00:12]} 45... Ke3 {[%clk 0:00:08.8]} 46. Kf1 {[%clk 0:00:10.4]} 46...
Kf3 {[%clk 0:00:08.4]} 47. Ke1 {[%clk 0:00:10.2]} 47... Ke3 {[%clk 0:00:09.3]}
48. Kf1 {[%clk 0:00:10.1]} 48... Rxh2 {[%clk 0:00:07.6]} 49. Rc6 {[%clk
0:00:08.7]} 49... Rf2+ {[%clk 0:00:06.5]} 50. Kg1 {[%clk 0:00:08.5]} 50... Rxf5
{[%clk 0:00:07.4]} 51. Re6+ {[%clk 0:00:07.3]} 51... Kd2 {[%clk 0:00:07.5]} 52.
Kg2 {[%clk 0:00:04.7]} 52... d3 {[%clk 0:00:07.8]} 53. Kg3 {[%clk 0:00:05.3]}
53... Kc2 {[%clk 0:00:07.7]} 54. Kg4 {[%clk 0:00:05.2]} 54... Rh5 {[%clk
0:00:08.1]} 55. Kxh5 {[%clk 0:00:05.3]} 55... d2 {[%clk 0:00:08.6]} 56. Rd6
{[%clk 0:00:05.7]} 56... d1=Q+ {[%clk 0:00:08.3]} 57. Rxd1 {[%clk 0:00:05.9]}
57... Kxd1 {[%clk 0:00:09.2]} 58. Kg6 {[%clk 0:00:06.3]} 1-0

[Event "*** Titled Tuesday Blitz"]
[Site "Chess.com"]
[Date "2021.03.09"]
[Round "4"]
[White "gisela_roque"]
[Black "jannat65"]
[Result "0-1"]
[WhiteElo "1750"]
[BlackElo "1945"]
[TimeControl "180+1"]
[EndTime "10:43:02 PST"]
[Termination "jannat65 won on time"]

1. c4 {[%clk 0:03:00.9]} 1... c6 {[%clk 0:02:58.8]} 2. Nf3 {[%clk 0:02:59.6]}
2... d5 {[%clk 0:02:58.9]} 3. b3 {[%clk 0:02:59.6]} 3... Nf6 {[%clk 0:02:57.6]}
4. Bb2 {[%clk 0:02:58.1]} 4... e6 {[%clk 0:02:51.9]} 5. g3 {[%clk 0:02:58.2]}
5... Be7 {[%clk 0:02:51.1]} 6. Bg2 {[%clk 0:02:58.4]} 6... O-O {[%clk
0:02:50.6]} 7. O-O {[%clk 0:02:59]} 7... Nbd7 {[%clk 0:02:45.4]} 8. e3 {[%clk
0:02:59.1]} 8... b6 {[%clk 0:02:44.5]} 9. Nc3 {[%clk 0:02:53.7]} 9... Bb7 {[%clk
0:02:43.5]} 10. Rc1 {[%clk 0:02:53.3]} 10... Rc8 {[%clk 0:02:42.1]} 11. d3
{[%clk 0:02:44.3]} 11... Re8 {[%clk 0:02:34.9]} 12. Rc2 {[%clk 0:02:37.3]} 12...
Bf8 {[%clk 0:02:30.5]} 13. Ne2 {[%clk 0:02:26.6]} 13... e5 {[%clk 0:02:28.4]}
14. Qa1 {[%clk 0:02:20.1]} 14... e4 {[%clk 0:02:19.8]} 15. dxe4 {[%clk
0:02:17.4]} 15... Nxe4 {[%clk 0:02:20.7]} 16. cxd5 {[%clk 0:02:11.2]} 16... cxd5
{[%clk 0:02:19.2]} 17. Rxc8 {[%clk 0:02:06.2]} 17... Bxc8 {[%clk 0:02:18.1]} 18.
Rd1 {[%clk 0:02:02.4]} 18... Bb7 {[%clk 0:02:10.8]} 19. Nf4 {[%clk 0:01:58.1]}
19... Ndc5 {[%clk 0:02:02.9]} 20. Nd2 {[%clk 0:01:35]} 20... Nxd2 {[%clk
0:01:56.9]} 21. Rxd2 {[%clk 0:01:34]} 21... Ne4 {[%clk 0:01:57.2]} 22. Bxe4
{[%clk 0:01:29.7]} 22... Rxe4 {[%clk 0:01:58.1]} 23. Qd1 {[%clk 0:01:27.8]}
23... Bb4 {[%clk 0:01:19.2]} 24. Rd3 {[%clk 0:01:25.7]} 24... d4 {[%clk
0:01:13.1]} 25. Rxd4 {[%clk 0:01:18.4]} 25... Rxd4 {[%clk 0:01:09.5]} 26. Qxd4
{[%clk 0:01:17.2]} 26... Qxd4 {[%clk 0:01:04.4]} 27. Bxd4 {[%clk 0:01:16.2]}
27... Kf8 {[%clk 0:00:59.9]} 28. Nd3 {[%clk 0:01:12]} 28... Be7 {[%clk 0:00:57]}
29. Kf1 {[%clk 0:01:08.7]} 29... Ba6 {[%clk 0:00:56.4]} 30. Ke2 {[%clk
0:01:07.6]} 30... f6 {[%clk 0:00:56.5]} 31. Kd2 {[%clk 0:01:05.8]} 31... Kf7
{[%clk 0:00:55.9]} 32. Nf4 {[%clk 0:01:03.3]} 32... g5 {[%clk 0:00:54.6]} 33.
Nd5 {[%clk 0:00:56.3]} 33... Bd8 {[%clk 0:00:54.2]} 34. Kc3 {[%clk 0:00:54]}
34... Ke6 {[%clk 0:00:53.8]} 35. Nb4 {[%clk 0:00:52.2]} 35... Bb7 {[%clk
0:00:52.5]} 36. Nd3 {[%clk 0:00:43.9]} 36... h5 {[%clk 0:00:48.9]} 37. f4 {[%clk
0:00:38.1]} 37... g4 {[%clk 0:00:45.5]} 38. Nf2 {[%clk 0:00:36.1]} 38... f5
{[%clk 0:00:44.3]} 39. b4 {[%clk 0:00:35.1]} 39... Be7 {[%clk 0:00:43.7]} 40. b5
{[%clk 0:00:33.7]} 40... Bd6 {[%clk 0:00:33.6]} 41. Nd3 {[%clk 0:00:28.9]} 41...
Be7 {[%clk 0:00:32.1]} 42. Ne5 {[%clk 0:00:27.3]} 42... Bd6 {[%clk 0:00:27.6]}
43. Nc4 {[%clk 0:00:21.5]} 43... Kd5 {[%clk 0:00:25]} 44. Nd2 {[%clk 0:00:19.7]}
44... Be7 {[%clk 0:00:23.5]} 45. Kd3 {[%clk 0:00:19.3]} 45... Bb4 {[%clk
0:00:21.2]} 46. Nb3 {[%clk 0:00:17.2]} 46... Ke6 {[%clk 0:00:20.1]} 47. Nc1
{[%clk 0:00:16.3]} 47... Be4+ {[%clk 0:00:20.1]} 48. Kc4 {[%clk 0:00:15.6]}
48... Bd5+ {[%clk 0:00:18]} 49. Kxb4 {[%clk 0:00:15.2]} 49... Bb7 {[%clk
0:00:16.2]} 50. a4 {[%clk 0:00:14.6]} 50... Kd5 {[%clk 0:00:16.5]} 51. Kc3
{[%clk 0:00:14.4]} 51... Ke4 {[%clk 0:00:16.1]} 52. Kd2 {[%clk 0:00:13.3]} 52...
Kf3 {[%clk 0:00:16.5]} 53. Nd3 {[%clk 0:00:12.9]} 53... Kg2 {[%clk 0:00:16.4]}
54. Ke2 {[%clk 0:00:10.5]} 54... Kxh2 {[%clk 0:00:16.5]} 55. Kf2 {[%clk
0:00:10.2]} 55... h4 {[%clk 0:00:16.2]} 56. Ne1 {[%clk 0:00:05.2]} 56... hxg3+
{[%clk 0:00:15.8]} 57. Kf1 {[%clk 0:00:04.7]} 57... g2+ {[%clk 0:00:16.1]} 58.
Nxg2 {[%clk 0:00:04.5]} 58... Bxg2+ {[%clk 0:00:16.5]} 59. Kf2 {[%clk
0:00:04.3]} 59... g3+ {[%clk 0:00:15.9]} 60. Ke2 {[%clk 0:00:03.9]} 60... Be4
{[%clk 0:00:16.1]} 0-1

[Event "*** Titled Tuesday Blitz"]
[Site "Chess.com"]
[Date "2021.03.09"]
[Round "4"]
[White "ChessAurochs"]
[Black "TimofeevAr"]
[Result "0-1"]
[WhiteElo "2584"]
[BlackElo "2879"]
[TimeControl "180+1"]
[EndTime "10:43:03 PST"]
[Termination "TimofeevAr won by resignation"]

1. e4 {[%clk 0:03:00.9]} 1... d5 {[%clk 0:02:59]} 2. exd5 {[%clk 0:03:00.2]}
2... Nf6 {[%clk 0:02:59.3]} 3. d4 {[%clk 0:03:00]} 3... Nxd5 {[%clk 0:02:59.6]}
4. c4 {[%clk 0:03:00.1]} 4... Nf6 {[%clk 0:02:59.8]} 5. Nc3 {[%clk 0:03:00.1]}
5... g6 {[%clk 0:03:00.1]} 6. Nf3 {[%clk 0:03:00]} 6... Bg7 {[%clk 0:03:00.4]}
7. Be3 {[%clk 0:03:00.6]} 7... O-O {[%clk 0:03:00.3]} 8. Be2 {[%clk 0:03:01.2]}
8... Bg4 {[%clk 0:02:58]} 9. O-O {[%clk 0:03:01.6]} 9... c6 {[%clk 0:02:57.9]}
10. h3 {[%clk 0:03:01.8]} 10... Bxf3 {[%clk 0:02:57.9]} 11. Bxf3 {[%clk
0:03:02.7]} 11... Nbd7 {[%clk 0:02:58.2]} 12. Qc2 {[%clk 0:02:55.7]} 12... e6
{[%clk 0:02:53.1]} 13. Rad1 {[%clk 0:02:55.3]} 13... Rc8 {[%clk 0:02:52.2]} 14.
Rfe1 {[%clk 0:02:55.6]} 14... a6 {[%clk 0:02:51.5]} 15. a4 {[%clk 0:02:51.3]}
15... Qc7 {[%clk 0:02:44.2]} 16. Bg5 {[%clk 0:02:40.2]} 16... Qa5 {[%clk
0:02:38.1]} 17. Bh4 {[%clk 0:02:33.1]} 17... Qb4 {[%clk 0:02:28.3]} 18. Na2
{[%clk 0:02:09.8]} 18... Qb6 {[%clk 0:02:27.6]} 19. b4 {[%clk 0:02:08.9]} 19...
a5 {[%clk 0:02:19.2]} 20. c5 {[%clk 0:02:06.6]} 20... Qa7 {[%clk 0:02:11.4]} 21.
b5 {[%clk 0:02:02.4]} 21... Nd5 {[%clk 0:01:55.8]} 22. Bg3 {[%clk 0:01:52.5]}
22... Rfe8 {[%clk 0:01:31]} 23. Bd6 {[%clk 0:01:39.8]} 23... Bf8 {[%clk
0:01:20.2]} 24. Bxf8 {[%clk 0:01:34.6]} 24... Kxf8 {[%clk 0:01:18.7]} 25. Nc3
{[%clk 0:01:32.6]} 25... N7f6 {[%clk 0:01:02]} 26. Nxd5 {[%clk 0:01:24.3]} 26...
exd5 {[%clk 0:01:01.7]} 27. b6 {[%clk 0:01:22.2]} 27... Qb8 {[%clk 0:01:00.5]}
28. Qd2 {[%clk 0:01:21.9]} 28... Qa8 {[%clk 0:00:47.8]} 29. Qf4 {[%clk
0:01:18.2]} 29... Kg7 {[%clk 0:00:47]} 30. g4 {[%clk 0:01:06.9]} 30... Qb8
{[%clk 0:00:40.1]} 31. Qd2 {[%clk 0:00:58.9]} 31... Ne4 {[%clk 0:00:39.6]} 32.
Bxe4 {[%clk 0:00:57.5]} 32... dxe4 {[%clk 0:00:39.9]} 33. Re3 {[%clk 0:00:51.1]}
33... Qf4 {[%clk 0:00:36.9]} 34. Qxa5 {[%clk 0:00:48.7]} 34... Rcd8 {[%clk
0:00:36.4]} 35. Qc3 {[%clk 0:00:46.4]} 35... Rd5 {[%clk 0:00:31.5]} 36. Rde1
{[%clk 0:00:45.4]} 36... h5 {[%clk 0:00:27.6]} 37. Rg3 {[%clk 0:00:38.2]} 37...
hxg4 {[%clk 0:00:26.4]} 38. Rxg4 {[%clk 0:00:32.1]} 38... Qf5 {[%clk 0:00:25.2]}
39. Qe3 {[%clk 0:00:29.9]} 39... Qd7 {[%clk 0:00:19.6]} 40. Rxe4 {[%clk
0:00:22.6]} 40... Rxe4 {[%clk 0:00:19.3]} 41. Qxe4 {[%clk 0:00:23.5]} 41... Qxh3
{[%clk 0:00:19.5]} 42. Qg2 {[%clk 0:00:10.7]} 42... Qc3 {[%clk 0:00:17]} 43. Re3
{[%clk 0:00:10.3]} 43... Qxd4 {[%clk 0:00:16.8]} 44. Re7 {[%clk 0:00:05.2]}
44... Qxc5 {[%clk 0:00:14.5]} 45. Rxb7 {[%clk 0:00:04.8]} 45... Rd1+ {[%clk
0:00:14.5]} 46. Kh2 {[%clk 0:00:04]} 46... Qh5+ {[%clk 0:00:15.1]} 47. Kg3
{[%clk 0:00:04.5]} 47... Rd3+ {[%clk 0:00:14]} 48. f3 {[%clk 0:00:04.5]} 48...
Qg5+ {[%clk 0:00:14.3]} 49. Kh3 {[%clk 0:00:04.9]} 49... Qh6+ {[%clk 0:00:13.3]}
50. Kg3 {[%clk 0:00:05.3]} 50... Qg5+ {[%clk 0:00:13.1]} 51. Kh3 {[%clk
0:00:05.6]} 51... Qf5+ {[%clk 0:00:13.6]} 52. Kg3 {[%clk 0:00:05.9]} 52... Qe5+
{[%clk 0:00:12.6]} 53. Kh3 {[%clk 0:00:06.2]} 53... Qe6+ {[%clk 0:00:13]} 54.
Kg3 {[%clk 0:00:06.6]} 54... Qd6+ {[%clk 0:00:11.6]} 55. Kh3 {[%clk 0:00:07]}
55... Rd2 {[%clk 0:00:12.1]} 56. Qg3 {[%clk 0:00:06.4]} 56... Qe6+ {[%clk
0:00:12.1]} 57. Qg4 {[%clk 0:00:06.7]} 57... Qe5 {[%clk 0:00:11]} 58. f4 {[%clk
0:00:05]} 58... Rd3+ {[%clk 0:00:10.2]} 59. Kg2 {[%clk 0:00:04.1]} 59... Qb2+
{[%clk 0:00:10]} 60. Kh1 {[%clk 0:00:01.6]} 60... Qc1+ {[%clk 0:00:08.4]} 61.
Qg1 {[%clk 0:00:02]} 61... Rd1 {[%clk 0:00:08.6]} 62. Qxd1 {[%clk 0:00:01.9]}
62... Qxd1+ {[%clk 0:00:09]} 63. Kg2 {[%clk 0:00:02.8]} 63... Qd5+ {[%clk
0:00:09.3]} 64. Kg3 {[%clk 0:00:03]} 64... c5 {[%clk 0:00:09.2]} 65. Rc7 {[%clk
0:00:03]} 65... Qb3+ {[%clk 0:00:09.3]} 0-1

[Event "*** Titled Tuesday Blitz"]
[Site "Chess.com"]
[Date "2021.03.09"]
[Round "4"]
[White "mr65"]
[Black "maximnovik"]
[Result "1-0"]
[WhiteElo "2106"]
[BlackElo "2543"]
[TimeControl "180+1"]
[EndTime "10:43:04 PST"]
[Termination "mr65 won by resignation"]

1. e4 {[%clk 0:03:00.9]} 1... c6 {[%clk 0:02:59.5]} 2. Nc3 {[%clk 0:02:59.9]}
2... d5 {[%clk 0:03:00]} 3. Nf3 {[%clk 0:03:00]} 3... Bg4 {[%clk 0:03:00]} 4. h3
{[%clk 0:02:59]} 4... Bxf3 {[%clk 0:02:58.4]} 5. Qxf3 {[%clk 0:02:58.6]} 5... e6
{[%clk 0:02:59]} 6. g3 {[%clk 0:02:58.7]} 6... Nf6 {[%clk 0:02:57.6]} 7. Bg2
{[%clk 0:02:57.8]} 7... Be7 {[%clk 0:02:56.9]} 8. O-O {[%clk 0:02:57]} 8... O-O
{[%clk 0:02:56.7]} 9. d3 {[%clk 0:02:48.7]} 9... d4 {[%clk 0:02:56.2]} 10. Ne2
{[%clk 0:02:45.6]} 10... e5 {[%clk 0:02:54.8]} 11. g4 {[%clk 0:02:43]} 11... h6
{[%clk 0:02:51]} 12. Ng3 {[%clk 0:02:42.5]} 12... Nh7 {[%clk 0:02:49.5]} 13. Nf5
{[%clk 0:02:39.6]} 13... Bg5 {[%clk 0:02:48.7]} 14. Qg3 {[%clk 0:02:31.1]} 14...
Nd7 {[%clk 0:02:29.2]} 15. f4 {[%clk 0:02:27.5]} 15... exf4 {[%clk 0:02:21.8]}
16. Bxf4 {[%clk 0:02:26]} 16... Bxf4 {[%clk 0:02:21.6]} 17. Rxf4 {[%clk
0:02:20.3]} 17... Ne5 {[%clk 0:02:09.7]} 18. b3 {[%clk 0:02:07.1]} 18... c5
{[%clk 0:01:58.2]} 19. a4 {[%clk 0:02:06.4]} 19... a5 {[%clk 0:01:22.8]} 20.
Raf1 {[%clk 0:01:33]} 20... Ra6 {[%clk 0:01:22.1]} 21. R4f2 {[%clk 0:01:29]}
21... Re8 {[%clk 0:01:20.9]} 22. Nh4 {[%clk 0:01:15.3]} 22... Ng5 {[%clk
0:01:14.7]} 23. Rf5 {[%clk 0:01:03.9]} 23... Rae6 {[%clk 0:01:08.7]} 24. Nf3
{[%clk 0:00:56.9]} 24... Ngxf3+ {[%clk 0:01:03.6]} 25. Bxf3 {[%clk 0:00:56]}
25... g6 {[%clk 0:01:03]} 26. Rf4 {[%clk 0:00:53.9]} 26... Kg7 {[%clk
0:00:59.5]} 27. Be2 {[%clk 0:00:50.6]} 27... Qe7 {[%clk 0:00:50.1]} 28. Bf3
{[%clk 0:00:46.6]} 28... Rh8 {[%clk 0:00:48]} 29. Be2 {[%clk 0:00:43.6]} 29...
Re8 {[%clk 0:00:47.2]} 30. Bf3 {[%clk 0:00:42.9]} 30... Rf6 {[%clk 0:00:47.3]}
31. Be2 {[%clk 0:00:40.7]} 31... Rxf4 {[%clk 0:00:46.9]} 32. Qxf4 {[%clk
0:00:39.3]} 32... Qg5 {[%clk 0:00:46.8]} 33. Qf2 {[%clk 0:00:29.4]} 33... Re6
{[%clk 0:00:28.5]} 34. h4 {[%clk 0:00:20.5]} 34... Qd2 {[%clk 0:00:25.4]} 35.
Bd1 {[%clk 0:00:17.9]} 35... Qxf2+ {[%clk 0:00:24.9]} 36. Rxf2 {[%clk
0:00:17.1]} 36... Rf6 {[%clk 0:00:24.9]} 37. Rg2 {[%clk 0:00:15.5]} 37... Rf4
{[%clk 0:00:24.5]} 38. Kh2 {[%clk 0:00:12.2]} 38... g5 {[%clk 0:00:23.9]} 39.
hxg5 {[%clk 0:00:10.9]} 39... hxg5 {[%clk 0:00:23.9]} 40. Be2 {[%clk 0:00:09.1]}
40... Kf6 {[%clk 0:00:21.1]} 41. Kg3 {[%clk 0:00:09.1]} 41... Ng6 {[%clk
0:00:20.9]} 42. Rh2 {[%clk 0:00:08.5]} 42... Nh4 {[%clk 0:00:20.2]} 43. Rxh4
{[%clk 0:00:07.2]} 43... Rxe4 {[%clk 0:00:16.3]} 44. dxe4 {[%clk 0:00:06]} 44...
gxh4+ {[%clk 0:00:15.7]} 45. Kxh4 {[%clk 0:00:06.2]} 45... Ke5 {[%clk
0:00:16.3]} 46. Bd3 {[%clk 0:00:05.1]} 46... Kf4 {[%clk 0:00:16.6]} 47. g5
{[%clk 0:00:05]} 47... Ke3 {[%clk 0:00:12.2]} 48. Kh5 {[%clk 0:00:05.2]} 48...
Kd2 {[%clk 0:00:07.1]} 49. Kh6 {[%clk 0:00:05.7]} 49... Kc3 {[%clk 0:00:07.3]}
50. Kg7 {[%clk 0:00:06.2]} 50... b5 {[%clk 0:00:07.7]} 51. Kxf7 {[%clk
0:00:06.8]} 51... c4 {[%clk 0:00:07.5]} 52. bxc4 {[%clk 0:00:05.4]} 52... bxc4
{[%clk 0:00:07.5]} 53. Bxc4 {[%clk 0:00:04.3]} 53... Kxc4 {[%clk 0:00:07.1]} 54.
e5 {[%clk 0:00:04.6]} 54... Kc3 {[%clk 0:00:07.7]} 55. e6 {[%clk 0:00:04.9]}
55... Kxc2 {[%clk 0:00:08.2]} 56. e7 {[%clk 0:00:05.7]} 56... d3 {[%clk
0:00:08.8]} 57. e8=Q {[%clk 0:00:05.6]} 57... d2 {[%clk 0:00:09.4]} 58. Qc6+
{[%clk 0:00:05.5]} 58... Kb2 {[%clk 0:00:08.9]} 59. Qd5 {[%clk 0:00:05.4]} 59...
Kc2 {[%clk 0:00:09]} 60. g6 {[%clk 0:00:05.5]} 60... d1=Q {[%clk 0:00:07.5]} 61.
Qxd1+ {[%clk 0:00:05.4]} 61... Kxd1 {[%clk 0:00:07.9]} 62. g7 {[%clk 0:00:05.8]}
62... Kc2 {[%clk 0:00:08.5]} 63. g8=Q {[%clk 0:00:05.7]} 63... Kb3 {[%clk
0:00:09.1]} 64. Qe8 {[%clk 0:00:05.2]} 64... Kb4 {[%clk 0:00:09]} 65. Qb5+
{[%clk 0:00:05.2]} 65... Kc3 {[%clk 0:00:08.6]} 66. Qxa5+ {[%clk 0:00:05.4]}
66... Kd4 {[%clk 0:00:09.1]} 67. Qb5 {[%clk 0:00:05.5]} 67... Ke4 {[%clk
0:00:08.3]} 68. a5 {[%clk 0:00:05.9]} 1-0